[Event "*** SCC Grand Prix: Titled Tuesday Blitz"]
[Site "Chess.com"]
[Date "2020.08.11"]
[Round "1"]
[White "sewin16"]
[Black "TheBigBoss04"]
[Result "0-1"]
[WhiteElo "2405"]
[BlackElo "2828"]
[TimeControl "180+1"]
[EndTime "10:07:57 PDT"]
[Termination "TheBigBoss04 won by checkmate"]

1. e4 {[%clk 0:03:00.9]} 1... c5 {[%clk 0:02:57.2]} 2. Nf3 {[%clk 0:02:59.8]}
2... d6 {[%clk 0:02:57]} 3. d4 {[%clk 0:03:00]} 3... cxd4 {[%clk 0:02:57.9]} 4.
Nxd4 {[%clk 0:03:00.4]} 4... Nf6 {[%clk 0:02:58.3]} 5. Nc3 {[%clk 0:03:00.9]}
5... a6 {[%clk 0:02:58.6]} 6. Bg5 {[%clk 0:03:01.1]} 6... Nbd7 {[%clk
0:02:58.4]} 7. Qe2 {[%clk 0:03:01]} 7... h6 {[%clk 0:02:57.9]} 8. Bh4 {[%clk
0:03:00.6]} 8... g5 {[%clk 0:02:58.2]} 9. Bg3 {[%clk 0:02:59.8]} 9... e6 {[%clk
0:02:58.9]} 10. O-O-O {[%clk 0:02:57.9]} 10... Qc7 {[%clk 0:02:55.9]} 11. h4
{[%clk 0:02:57.2]} 11... Rg8 {[%clk 0:02:55.7]} 12. hxg5 {[%clk 0:02:56.3]}
12... hxg5 {[%clk 0:02:56.6]} 13. Kb1 {[%clk 0:02:05.4]} 13... Ne5 {[%clk
0:02:54]} 14. Nf3 {[%clk 0:01:49.8]} 14... b5 {[%clk 0:02:43.1]} 15. Nxe5 {[%clk
0:01:45.3]} 15... dxe5 {[%clk 0:02:44]} 16. Qf3 {[%clk 0:01:43.3]} 16... Be7
{[%clk 0:02:42.5]} 17. Bd3 {[%clk 0:01:42.2]} 17... b4 {[%clk 0:02:40.1]} 18.
Ne2 {[%clk 0:01:41.4]} 18... Bb7 {[%clk 0:02:38.5]} 19. Qe3 {[%clk 0:01:41]}
19... Bc5 {[%clk 0:02:33.8]} 20. Qc1 {[%clk 0:01:39]} 20... Ng4 {[%clk
0:02:30.9]} 21. Rh5 {[%clk 0:01:30.3]} 21... Qe7 {[%clk 0:02:18.4]} 22. Rf1
{[%clk 0:01:25.7]} 22... O-O-O {[%clk 0:02:10.5]} 23. Qe1 {[%clk 0:01:24.7]}
23... Nf6 {[%clk 0:02:05.5]} 24. Rhh1 {[%clk 0:01:17.5]} 24... Nxe4 {[%clk
0:02:03.2]} 25. Bxe5 {[%clk 0:01:17]} 25... f6 {[%clk 0:01:59.3]} 26. Ng3 {[%clk
0:01:16.4]} 26... Nxg3 {[%clk 0:01:25.6]} 27. Bxg3 {[%clk 0:01:15.4]} 27... Rg7
{[%clk 0:01:24.9]} 28. f4 {[%clk 0:01:11.2]} 28... gxf4 {[%clk 0:01:21.2]} 29.
Rxf4 {[%clk 0:01:08.5]} 29... e5 {[%clk 0:01:18.7]} 30. Rc4 {[%clk 0:01:07.8]}
30... Kb8 {[%clk 0:01:17.2]} 31. Bh4 {[%clk 0:01:04.3]} 31... Bxg2 {[%clk
0:01:12.6]} 32. Rh2 {[%clk 0:01:02.7]} 32... Bd5 {[%clk 0:01:03.5]} 33. Bxf6
{[%clk 0:01:02.3]} 33... Qxf6 {[%clk 0:00:55.7]} 34. Rxc5 {[%clk 0:01:01.7]}
34... Qd6 {[%clk 0:00:56.2]} 35. Qxb4+ {[%clk 0:00:56.3]} 35... Rb7 {[%clk
0:00:52.8]} 36. Qa5 {[%clk 0:00:49.9]} 36... e4 {[%clk 0:00:49.8]} 37. Rh6
{[%clk 0:00:44.8]} 37... Rg8 {[%clk 0:00:30.2]} 38. Rh1 {[%clk 0:00:27.5]} 38...
exd3 {[%clk 0:00:24.4]} 39. Rxd5 {[%clk 0:00:27.3]} 39... dxc2+ {[%clk
0:00:22.7]} 40. Kc1 {[%clk 0:00:23.2]} 40... Qf4+ {[%clk 0:00:13.5]} 41. Qd2
{[%clk 0:00:22.8]} 41... Qf6 {[%clk 0:00:13.3]} 42. Qxc2 {[%clk 0:00:18.9]}
42... Rc8 {[%clk 0:00:11.9]} 43. Rc5 {[%clk 0:00:05]} 43... Rxc5 {[%clk
0:00:11.3]} 44. Qxc5 {[%clk 0:00:05.9]} 44... Qxb2+ {[%clk 0:00:08.6]} 45. Kd1
{[%clk 0:00:05.6]} 45... Qb1+ {[%clk 0:00:06.4]} 46. Qc1 {[%clk 0:00:05.5]}
46... Qd3+ {[%clk 0:00:05.4]} 47. Ke1 {[%clk 0:00:02.2]} 47... Re7+ {[%clk
0:00:05.4]} 48. Kf2 {[%clk 0:00:02.6]} 48... Re2+ {[%clk 0:00:05.4]} 49. Kf1
{[%clk 0:00:02.4]} 49... Qf3+ {[%clk 0:00:05.1]} 50. Kg1 {[%clk 0:00:02.4]}
50... Qg2# {[%clk 0:00:06]} 0-1

[Event "*** SCC Grand Prix: Titled Tuesday Blitz"]
[Site "Chess.com"]
[Date "2020.08.11"]
[Round "1"]
[White "teacher4chess"]
[Black "Sergey85Rodchenkov"]
[Result "0-1"]
[WhiteElo "2044"]
[BlackElo "2490"]
[TimeControl "180+1"]
[EndTime "10:07:58 PDT"]
[Termination "Sergey85Rodchenkov won by checkmate"]

1. d4 {[%clk 0:02:59.5]} 1... Nf6 {[%clk 0:02:59.4]} 2. c4 {[%clk 0:02:59.5]}
2... e6 {[%clk 0:02:59]} 3. Nc3 {[%clk 0:02:59.4]} 3... Bb4 {[%clk 0:02:54.1]}
4. e3 {[%clk 0:02:59.4]} 4... c5 {[%clk 0:02:49.9]} 5. Bd3 {[%clk 0:02:59]} 5...
Nc6 {[%clk 0:02:49.9]} 6. Nf3 {[%clk 0:02:57]} 6... d6 {[%clk 0:02:47.9]} 7. Bd2
{[%clk 0:02:56.3]} 7... e5 {[%clk 0:02:46.6]} 8. d5 {[%clk 0:02:40.3]} 8... Ne7
{[%clk 0:02:44.8]} 9. e4 {[%clk 0:02:30.2]} 9... Ng6 {[%clk 0:02:43.9]} 10. h3
{[%clk 0:02:18.6]} 10... O-O {[%clk 0:02:40.2]} 11. O-O {[%clk 0:02:18.4]} 11...
Bxc3 {[%clk 0:02:39.1]} 12. bxc3 {[%clk 0:02:17.2]} 12... h6 {[%clk 0:02:36.1]}
13. Qc1 {[%clk 0:02:12.5]} 13... Kh7 {[%clk 0:02:23]} 14. Rb1 {[%clk 0:02:04.6]}
14... b6 {[%clk 0:02:22.7]} 15. Kh2 {[%clk 0:01:46.1]} 15... Nh5 {[%clk
0:02:18.4]} 16. g3 {[%clk 0:01:45]} 16... Nf6 {[%clk 0:02:05]} 17. Ng1 {[%clk
0:01:40.3]} 17... Re8 {[%clk 0:02:03.4]} 18. Re1 {[%clk 0:01:20.8]} 18... Kg8
{[%clk 0:01:49.3]} 19. f4 {[%clk 0:01:17.4]} 19... exf4 {[%clk 0:01:40.6]} 20.
gxf4 {[%clk 0:01:17.6]} 20... Nh5 {[%clk 0:01:33.3]} 21. Nf3 {[%clk 0:00:46.6]}
21... Nh4 {[%clk 0:01:30.5]} 22. Rf1 {[%clk 0:00:40.2]} 22... Bd7 {[%clk
0:01:11.8]} 23. Qe1 {[%clk 0:00:39.8]} 23... Ng6 {[%clk 0:01:06.2]} 24. f5
{[%clk 0:00:30.8]} 24... Ngf4 {[%clk 0:00:56.4]} 25. Bc2 {[%clk 0:00:27.2]}
25... Bxf5 {[%clk 0:00:49.6]} 26. Qh4 {[%clk 0:00:25.9]} 26... Qxh4 {[%clk
0:00:38]} 27. Nxh4 {[%clk 0:00:26.1]} 27... Bxe4 {[%clk 0:00:38.6]} 28. Bxe4
{[%clk 0:00:23.8]} 28... Rxe4 {[%clk 0:00:37.7]} 29. Bxf4 {[%clk 0:00:21.7]}
29... Nxf4 {[%clk 0:00:34.5]} 30. Rf2 {[%clk 0:00:19.3]} 30... Nd3 {[%clk
0:00:22.5]} 31. Rg2 {[%clk 0:00:17.4]} 31... Rxh4 {[%clk 0:00:21.8]} 32. Rbg1
{[%clk 0:00:16.1]} 32... g5 {[%clk 0:00:21]} 33. Rg3 {[%clk 0:00:15.4]} 33...
Ne5 {[%clk 0:00:20.5]} 34. Rf1 {[%clk 0:00:12.4]} 34... Rxc4 {[%clk 0:00:19.7]}
35. Rf6 {[%clk 0:00:11.7]} 35... Rd8 {[%clk 0:00:19.4]} 36. Rxh6 {[%clk
0:00:11.4]} 36... Kg7 {[%clk 0:00:19.9]} 37. Rh5 {[%clk 0:00:11.8]} 37... f6
{[%clk 0:00:20.2]} 38. h4 {[%clk 0:00:12]} 38... Kg6 {[%clk 0:00:20]} 39. hxg5
{[%clk 0:00:11.7]} 39... Kxh5 {[%clk 0:00:19.9]} 40. gxf6 {[%clk 0:00:12.3]}
40... Rg4 {[%clk 0:00:18.9]} 41. Rh3+ {[%clk 0:00:12.1]} 41... Rh4 {[%clk
0:00:18.7]} 42. Rxh4+ {[%clk 0:00:12.1]} 42... Kxh4 {[%clk 0:00:19]} 43. f7
{[%clk 0:00:12.9]} 43... Rf8 {[%clk 0:00:19.1]} 44. a4 {[%clk 0:00:13.6]} 44...
Rxf7 {[%clk 0:00:19.3]} 45. a5 {[%clk 0:00:13.8]} 45... bxa5 {[%clk 0:00:18.9]}
46. c4 {[%clk 0:00:14.3]} 46... a4 {[%clk 0:00:18.5]} 47. Kg2 {[%clk 0:00:14.8]}
47... a3 {[%clk 0:00:18.7]} 48. Kg1 {[%clk 0:00:15.4]} 48... a2 {[%clk
0:00:18.7]} 49. Kh2 {[%clk 0:00:15.3]} 49... a1=Q {[%clk 0:00:18.6]} 50. Kg2
{[%clk 0:00:15.3]} 50... Qa2+ {[%clk 0:00:18.7]} 51. Kh1 {[%clk 0:00:15.3]}
51... Rf1# {[%clk 0:00:18.1]} 0-1

[Event "*** SCC Grand Prix: Titled Tuesday Blitz"]
[Site "Chess.com"]
[Date "2020.08.11"]
[Round "1"]
[White "ShadowJolteon"]
[Black "QuintilianoR"]
[Result "0-1"]
[WhiteElo "2298"]
[BlackElo "2642"]
[TimeControl "180+1"]
[EndTime "10:08:01 PDT"]
[Termination "QuintilianoR won on time"]

1. d4 {[%clk 0:02:46.7]} 1... d5 {[%clk 0:02:58.7]} 2. c4 {[%clk 0:02:46.1]}
2... c6 {[%clk 0:02:58.8]} 3. Nf3 {[%clk 0:02:45.9]} 3... Nf6 {[%clk 0:02:58.7]}
4. cxd5 {[%clk 0:02:44.1]} 4... cxd5 {[%clk 0:02:58]} 5. Nc3 {[%clk 0:02:45]}
5... Nc6 {[%clk 0:02:57.2]} 6. e3 {[%clk 0:02:38.8]} 6... e6 {[%clk 0:02:55.4]}
7. Bd3 {[%clk 0:02:39]} 7... Bd6 {[%clk 0:02:40.7]} 8. O-O {[%clk 0:02:39.9]}
8... O-O {[%clk 0:02:39.5]} 9. a3 {[%clk 0:02:39.5]} 9... e5 {[%clk 0:02:32.2]}
10. dxe5 {[%clk 0:02:39.5]} 10... Nxe5 {[%clk 0:02:31.9]} 11. Nxe5 {[%clk
0:02:40.4]} 11... Bxe5 {[%clk 0:02:31.3]} 12. e4 {[%clk 0:02:33]} 12... dxe4
{[%clk 0:02:25.1]} 13. Nxe4 {[%clk 0:02:33.9]} 13... Nxe4 {[%clk 0:02:25]} 14.
Bxe4 {[%clk 0:02:34.2]} 14... Bxh2+ {[%clk 0:02:25.3]} 15. Kxh2 {[%clk 0:02:24]}
15... Qh4+ {[%clk 0:02:24.1]} 16. Kg1 {[%clk 0:02:23.6]} 16... Qxe4 {[%clk
0:02:25]} 17. Re1 {[%clk 0:02:23.7]} 17... Qg6 {[%clk 0:02:23.5]} 18. Qf3 {[%clk
0:02:19.8]} 18... Bd7 {[%clk 0:02:18.6]} 19. Bf4 {[%clk 0:02:13.3]} 19... Bc6
{[%clk 0:02:17.5]} 20. Qg3 {[%clk 0:02:13.4]} 20... Rfe8 {[%clk 0:01:59.9]} 21.
Qxg6 {[%clk 0:01:52.6]} 21... hxg6 {[%clk 0:02:00.8]} 22. f3 {[%clk 0:01:51.3]}
22... f6 {[%clk 0:01:57.5]} 23. Kf2 {[%clk 0:01:50.9]} 23... Kf7 {[%clk
0:01:57.3]} 24. Rad1 {[%clk 0:01:50.2]} 24... g5 {[%clk 0:01:52]} 25. Bd6 {[%clk
0:01:44.9]} 25... Rad8 {[%clk 0:01:40.7]} 26. Rxe8 {[%clk 0:01:44]} 26... Rxe8
{[%clk 0:01:38.4]} 27. Re1 {[%clk 0:01:43.4]} 27... Rd8 {[%clk 0:01:37.5]} 28.
Re7+ {[%clk 0:01:35.3]} 28... Kg6 {[%clk 0:01:34.7]} 29. Bb4 {[%clk 0:01:34]}
29... Rd5 {[%clk 0:01:17.2]} 30. Bc3 {[%clk 0:01:29.9]} 30... Rf5 {[%clk
0:01:13.8]} 31. Kg3 {[%clk 0:01:19.9]} 31... Rd5 {[%clk 0:01:06.5]} 32. Rc7
{[%clk 0:01:14.7]} 32... Rd3 {[%clk 0:00:51.9]} 33. Re7 {[%clk 0:01:11.3]} 33...
Rd1 {[%clk 0:00:45.7]} 34. Rc7 {[%clk 0:01:09.7]} 34... Rg1 {[%clk 0:00:40.7]}
35. Kf2 {[%clk 0:01:08.8]} 35... Rh1 {[%clk 0:00:39.5]} 36. Kg3 {[%clk
0:01:08.1]} 36... Rh7 {[%clk 0:00:38.9]} 37. Kf2 {[%clk 0:00:54.5]} 37... g4
{[%clk 0:00:34.5]} 38. Kg3 {[%clk 0:00:49.5]} 38... gxf3 {[%clk 0:00:33.8]} 39.
gxf3 {[%clk 0:00:50.4]} 39... Rh1 {[%clk 0:00:33.3]} 40. Kg2 {[%clk 0:00:34.5]}
40... Rh5 {[%clk 0:00:29.2]} 41. Kg3 {[%clk 0:00:32.8]} 41... Rg5+ {[%clk
0:00:27.7]} 42. Kf2 {[%clk 0:00:05.1]} 42... Rf5 {[%clk 0:00:27.1]} 43. Ke2
{[%clk 0:00:01.7]} 43... Bxf3+ {[%clk 0:00:24.8]} 44. Ke3 {[%clk 0:00:01.9]}
44... Bc6 {[%clk 0:00:24.5]} 45. b4 {[%clk 0:00:02.1]} 45... Rf3+ {[%clk
0:00:20]} 46. Kd2 {[%clk 0:00:02.3]} 46... a6 {[%clk 0:00:19]} 47. Bd4 {[%clk
0:00:01.1]} 47... Rf5 {[%clk 0:00:17]} 48. Bc5 {[%clk 0:00:02]} 48... Rd5+
{[%clk 0:00:16.8]} 49. Ke3 {[%clk 0:00:01.7]} 49... Rd7 {[%clk 0:00:17]} 50. Rc8
{[%clk 0:00:01.5]} 50... Kf7 {[%clk 0:00:15.6]} 51. Rf8+ {[%clk 0:00:01]} 51...
Ke6 {[%clk 0:00:14.8]} 52. Rh8 {[%clk 0:00:01.9]} 52... Kf5 {[%clk 0:00:14.7]}
53. Rf8 {[%clk 0:00:01.2]} 53... g5 {[%clk 0:00:14.2]} 0-1

[Event "*** SCC Grand Prix: Titled Tuesday Blitz"]
[Site "Chess.com"]
[Date "2020.08.11"]
[Round "1"]
[White "Sanan_Sjugirov"]
[Black "bsnsun"]
[Result "1-0"]
[WhiteElo "2821"]
[BlackElo "2403"]
[TimeControl "180+1"]
[EndTime "10:08:03 PDT"]
[Termination "Sanan_Sjugirov won by resignation"]

1. e4 {[%clk 0:03:00.4]} 1... c5 {[%clk 0:02:49.1]} 2. Nf3 {[%clk 0:02:58.6]}
2... d6 {[%clk 0:02:49.1]} 3. d4 {[%clk 0:02:51.6]} 3... cxd4 {[%clk 0:02:49.3]}
4. Nxd4 {[%clk 0:02:52.5]} 4... Nf6 {[%clk 0:02:49]} 5. Nc3 {[%clk 0:02:52.4]}
5... a6 {[%clk 0:02:49.5]} 6. h3 {[%clk 0:02:47.6]} 6... e6 {[%clk 0:02:45.8]}
7. g4 {[%clk 0:02:44.7]} 7... h6 {[%clk 0:02:45.8]} 8. Be3 {[%clk 0:02:28.5]}
8... b5 {[%clk 0:02:36.7]} 9. Bg2 {[%clk 0:02:11.1]} 9... Bb7 {[%clk 0:02:36.7]}
10. a3 {[%clk 0:01:52.4]} 10... Nbd7 {[%clk 0:02:28.1]} 11. O-O {[%clk
0:01:52.2]} 11... Nc5 {[%clk 0:02:25.6]} 12. f3 {[%clk 0:01:43.5]} 12... Rc8
{[%clk 0:02:24.6]} 13. Qe2 {[%clk 0:01:34.2]} 13... Be7 {[%clk 0:02:23.7]} 14.
Rad1 {[%clk 0:01:33.4]} 14... Qc7 {[%clk 0:02:20.1]} 15. Qf2 {[%clk 0:01:15.5]}
15... d5 {[%clk 0:02:05.9]} 16. exd5 {[%clk 0:01:09.2]} 16... Nxd5 {[%clk
0:02:05.9]} 17. Nxd5 {[%clk 0:01:09.4]} 17... Bxd5 {[%clk 0:02:05.9]} 18. Nf5
{[%clk 0:00:53.5]} 18... O-O {[%clk 0:01:49.5]} 19. Nxe7+ {[%clk 0:00:41.9]}
19... Qxe7 {[%clk 0:01:49.8]} 20. Rfe1 {[%clk 0:00:41.3]} 20... Rfd8 {[%clk
0:01:45.9]} 21. Rd2 {[%clk 0:00:27.8]} 21... Na4 {[%clk 0:01:40.2]} 22. Bd4
{[%clk 0:00:24.5]} 22... Nc5 {[%clk 0:01:17.7]} 23. Red1 {[%clk 0:00:23.2]}
23... Nd7 {[%clk 0:01:12.7]} 24. Qe3 {[%clk 0:00:20.3]} 24... Nf8 {[%clk
0:00:59.8]} 25. Bc3 {[%clk 0:00:19.4]} 25... Ng6 {[%clk 0:00:56.4]} 26. Qd4
{[%clk 0:00:12.4]} 26... f6 {[%clk 0:00:56.2]} 27. Qe3 {[%clk 0:00:12.2]} 27...
Rc4 {[%clk 0:00:55.5]} 28. Rd4 {[%clk 0:00:07.8]} 28... Rdc8 {[%clk 0:00:50.7]}
29. Bf1 {[%clk 0:00:06.1]} 29... Rxd4 {[%clk 0:00:50.3]} 30. Rxd4 {[%clk
0:00:07]} 30... Ne5 {[%clk 0:00:50]} 31. Be2 {[%clk 0:00:07.3]} 31... Nc4 {[%clk
0:00:43.8]} 32. Bxc4 {[%clk 0:00:03.2]} 32... Rxc4 {[%clk 0:00:40.6]} 33. Rxd5
{[%clk 0:00:02.8]} 33... Rc6 {[%clk 0:00:23]} 34. Rd2 {[%clk 0:00:02.8]} 34...
Qc7 {[%clk 0:00:23.2]} 35. Kg2 {[%clk 0:00:02.7]} 35... e5 {[%clk 0:00:22.6]}
36. Qd3 {[%clk 0:00:02.7]} 36... Rc4 {[%clk 0:00:13.1]} 37. Qd8+ {[%clk
0:00:02.8]} 37... Qxd8 {[%clk 0:00:13.6]} 38. Rxd8+ {[%clk 0:00:03.7]} 38... Kf7
{[%clk 0:00:14.2]} 39. Rd3 {[%clk 0:00:04.6]} 39... Rc7 {[%clk 0:00:14.1]} 40.
Kf2 {[%clk 0:00:04.9]} 40... Ke6 {[%clk 0:00:14.7]} 41. Ke3 {[%clk 0:00:05.4]}
41... g6 {[%clk 0:00:15.3]} 42. h4 {[%clk 0:00:05.6]} 42... f5 {[%clk
0:00:15.6]} 43. gxf5+ {[%clk 0:00:06.5]} 43... gxf5 {[%clk 0:00:16.5]} 44. Rd1
{[%clk 0:00:06.9]} 44... Rg7 {[%clk 0:00:16.7]} 45. Kf2 {[%clk 0:00:07.2]} 45...
Rg6 {[%clk 0:00:16.7]} 46. Bb4 {[%clk 0:00:07.3]} 46... Kf7 {[%clk 0:00:10.9]}
47. Rd7+ {[%clk 0:00:07.2]} 47... Ke8 {[%clk 0:00:11.4]} 48. Re7+ {[%clk
0:00:07.3]} 48... Kd8 {[%clk 0:00:11.9]} 49. Rxe5 {[%clk 0:00:08.2]} 1-0

[Event "*** SCC Grand Prix: Titled Tuesday Blitz"]
[Site "Chess.com"]
[Date "2020.08.11"]
[Round "1"]
[White "pooh2012"]
[Black "vinniethepooh"]
[Result "0-1"]
[WhiteElo "2353"]
[BlackElo "2711"]
[TimeControl "180+1"]
[EndTime "10:08:03 PDT"]
[Termination "vinniethepooh won by resignation"]

1. d4 {[%clk 0:02:59.1]} 1... Nf6 {[%clk 0:03:00]} 2. Nc3 {[%clk 0:02:58]} 2...
d5 {[%clk 0:02:59.9]} 3. Bf4 {[%clk 0:02:57.8]} 3... e6 {[%clk 0:02:58.7]} 4. e3
{[%clk 0:02:53.2]} 4... Bd6 {[%clk 0:02:57]} 5. Bg3 {[%clk 0:02:50.3]} 5... O-O
{[%clk 0:02:56.4]} 6. f4 {[%clk 0:02:46.8]} 6... Bb4 {[%clk 0:02:48.7]} 7. Bd3
{[%clk 0:02:32.9]} 7... c5 {[%clk 0:02:40.4]} 8. Kf1 {[%clk 0:01:47.2]} 8... c4
{[%clk 0:01:54.2]} 9. Be2 {[%clk 0:01:35.3]} 9... Bxc3 {[%clk 0:01:38.1]} 10.
bxc3 {[%clk 0:01:36.2]} 10... Ne4 {[%clk 0:01:39]} 11. Be1 {[%clk 0:01:36.1]}
11... g5 {[%clk 0:01:36.8]} 12. Bf3 {[%clk 0:01:30.1]} 12... f5 {[%clk 0:01:34]}
13. fxg5 {[%clk 0:01:23.8]} 13... Qxg5 {[%clk 0:01:29.8]} 14. Qe2 {[%clk
0:01:22.3]} 14... Nc6 {[%clk 0:01:26.7]} 15. Nh3 {[%clk 0:01:17.3]} 15... Qg7
{[%clk 0:01:21.5]} 16. Nf4 {[%clk 0:01:16.1]} 16... Bd7 {[%clk 0:01:21.5]} 17.
Rb1 {[%clk 0:01:15.1]} 17... b6 {[%clk 0:01:20.6]} 18. g3 {[%clk 0:00:48.2]}
18... Rae8 {[%clk 0:01:18.8]} 19. Kg2 {[%clk 0:00:45.6]} 19... Kh8 {[%clk
0:01:12.1]} 20. Rg1 {[%clk 0:00:44.8]} 20... Ne7 {[%clk 0:00:55.3]} 21. Kh1
{[%clk 0:00:28]} 21... Ng8 {[%clk 0:00:52.5]} 22. g4 {[%clk 0:00:25.2]} 22...
Qf7 {[%clk 0:00:35.9]} 23. Bxe4 {[%clk 0:00:23]} 23... fxe4 {[%clk 0:00:27.5]}
24. Bh4 {[%clk 0:00:21.3]} 24... e5 {[%clk 0:00:24.3]} 25. dxe5 {[%clk
0:00:20.3]} 25... Rxe5 {[%clk 0:00:25.2]} 26. Rbf1 {[%clk 0:00:17.8]} 26... Qe8
{[%clk 0:00:22.6]} 27. Bg3 {[%clk 0:00:17.5]} 27... Nf6 {[%clk 0:00:19.2]} 28.
Bh4 {[%clk 0:00:09.3]} 28... Ng8 {[%clk 0:00:15.1]} 29. g5 {[%clk 0:00:09.2]}
29... Ne7 {[%clk 0:00:09.8]} 30. Qd2 {[%clk 0:00:06.1]} 30... Ref5 {[%clk
0:00:09.8]} 31. Qd4+ {[%clk 0:00:05.9]} 31... Kg8 {[%clk 0:00:09.6]} 32. Qd2
{[%clk 0:00:04.5]} 32... Qf7 {[%clk 0:00:07.9]} 33. Qg2 {[%clk 0:00:03.4]} 33...
Ng6 {[%clk 0:00:08.2]} 34. Bg3 {[%clk 0:00:03]} 34... Bc8 {[%clk 0:00:07.7]} 35.
Nh5 {[%clk 0:00:02.5]} 35... Rxf1 {[%clk 0:00:07.3]} 36. Nf6+ {[%clk 0:00:02]}
36... Rxf6 {[%clk 0:00:07.8]} 37. gxf6 {[%clk 0:00:02.6]} 37... Qxf6 {[%clk
0:00:08.7]} 38. h4 {[%clk 0:00:03.4]} 38... Bg4 {[%clk 0:00:07.7]} 39. Kh2
{[%clk 0:00:02.5]} 39... Qf3 {[%clk 0:00:07.5]} 40. h5 {[%clk 0:00:02.4]} 40...
Qxg2+ {[%clk 0:00:07.2]} 41. Rxg2 {[%clk 0:00:02.9]} 41... Bxh5 {[%clk
0:00:05.5]} 42. Be5 {[%clk 0:00:02.7]} 42... Bf3 {[%clk 0:00:04.6]} 43. Rg3
{[%clk 0:00:03.1]} 43... Rf5 {[%clk 0:00:04.6]} 44. Bd4 {[%clk 0:00:02.7]} 44...
Rh5+ {[%clk 0:00:04.9]} 45. Kg1 {[%clk 0:00:03.4]} 45... Rh1+ {[%clk 0:00:05.5]}
46. Kf2 {[%clk 0:00:04]} 46... Kf7 {[%clk 0:00:06.4]} 0-1

[Event "*** SCC Grand Prix: Titled Tuesday Blitz"]
[Site "Chess.com"]
[Date "2020.08.11"]
[Round "1"]
[White "Yashasd1995"]
[Black "tylityli"]
[Result "1-0"]
[WhiteElo "2523"]
[BlackElo "2156"]
[TimeControl "180+1"]
[EndTime "10:08:04 PDT"]
[Termination "Yashasd1995 won on time"]

1. b3 {[%clk 0:03:00.9]} 1... e5 {[%clk 0:02:59.2]} 2. Bb2 {[%clk 0:03:01.8]}
2... Nc6 {[%clk 0:02:59.2]} 3. e3 {[%clk 0:03:02.2]} 3... Nf6 {[%clk 0:02:58.9]}
4. Bb5 {[%clk 0:03:02.4]} 4... Bd6 {[%clk 0:02:59]} 5. Na3 {[%clk 0:03:01.6]}
5... a6 {[%clk 0:02:58.8]} 6. Be2 {[%clk 0:02:58.5]} 6... b5 {[%clk 0:02:58.1]}
7. c4 {[%clk 0:02:58.2]} 7... b4 {[%clk 0:02:48.6]} 8. Nc2 {[%clk 0:02:57.4]}
8... Be7 {[%clk 0:02:43.6]} 9. d4 {[%clk 0:02:55.6]} 9... d6 {[%clk 0:02:42.8]}
10. Nf3 {[%clk 0:02:53.8]} 10... e4 {[%clk 0:02:41.3]} 11. Nd2 {[%clk
0:02:53.3]} 11... O-O {[%clk 0:02:39.6]} 12. d5 {[%clk 0:02:48]} 12... Ne5
{[%clk 0:02:33.3]} 13. Nxb4 {[%clk 0:02:47.5]} 13... a5 {[%clk 0:02:27.1]} 14.
Bxe5 {[%clk 0:02:42.2]} 14... dxe5 {[%clk 0:02:23.5]} 15. Nc6 {[%clk 0:02:41.2]}
15... Qd6 {[%clk 0:02:21.3]} 16. Qc2 {[%clk 0:02:33]} 16... Bd7 {[%clk
0:02:04.8]} 17. Nxe7+ {[%clk 0:02:29.4]} 17... Qxe7 {[%clk 0:02:04.5]} 18. Nxe4
{[%clk 0:02:29.3]} 18... Nxe4 {[%clk 0:02:01.5]} 19. Qxe4 {[%clk 0:02:28.9]}
19... Qb4+ {[%clk 0:02:01.7]} 20. Kf1 {[%clk 0:02:29.5]} 20... Qc3 {[%clk
0:01:57.2]} 21. Rb1 {[%clk 0:02:25.6]} 21... a4 {[%clk 0:01:41.9]} 22. Qd3
{[%clk 0:02:24]} 22... Qb4 {[%clk 0:01:40.4]} 23. g3 {[%clk 0:02:16.4]} 23...
Bh3+ {[%clk 0:01:34.9]} 24. Kg1 {[%clk 0:02:15.9]} 24... axb3 {[%clk 0:01:23.7]}
25. axb3 {[%clk 0:02:16.8]} 25... Ra2 {[%clk 0:01:22.5]} 26. Bf1 {[%clk
0:02:16.8]} 26... Bd7 {[%clk 0:00:55.9]} 27. Bg2 {[%clk 0:01:49.1]} 27... f5
{[%clk 0:00:45.9]} 28. Bf3 {[%clk 0:01:36.6]} 28... e4 {[%clk 0:00:42.6]} 29.
Qd1 {[%clk 0:01:33.3]} 29... exf3 {[%clk 0:00:30.8]} 30. Qxf3 {[%clk 0:01:34.2]}
30... Ra3 {[%clk 0:00:23.9]} 31. Kg2 {[%clk 0:01:29.7]} 31... Rxb3 {[%clk
0:00:23.5]} 32. Rxb3 {[%clk 0:01:29.7]} 32... Qxb3 {[%clk 0:00:23.7]} 33. Rc1
{[%clk 0:01:30.1]} 33... Qb2 {[%clk 0:00:22.5]} 34. Rd1 {[%clk 0:01:26.1]} 34...
Qe5 {[%clk 0:00:20]} 35. Rd4 {[%clk 0:01:24.2]} 35... Rb8 {[%clk 0:00:18.6]} 36.
c5 {[%clk 0:01:19.1]} 36... h6 {[%clk 0:00:16.5]} 37. c6 {[%clk 0:01:18.8]}
37... Be8 {[%clk 0:00:14.9]} 38. Qf4 {[%clk 0:01:16.4]} 38... Qxf4 {[%clk
0:00:13.3]} 39. Rxf4 {[%clk 0:01:17.3]} 39... g6 {[%clk 0:00:13.2]} 40. g4
{[%clk 0:01:15.5]} 40... fxg4 {[%clk 0:00:12]} 41. Rxg4 {[%clk 0:01:15]} 41...
Kg7 {[%clk 0:00:11.4]} 42. h4 {[%clk 0:01:13.4]} 42... Kf6 {[%clk 0:00:11.1]}
43. e4 {[%clk 0:01:12.9]} 43... Ke5 {[%clk 0:00:10.5]} 44. f3 {[%clk 0:01:07.9]}
44... Rb2+ {[%clk 0:00:08]} 45. Kg3 {[%clk 0:01:07.9]} 45... Rb3 {[%clk
0:00:08.1]} 46. Rf4 {[%clk 0:01:05.6]} 46... Rb1 {[%clk 0:00:03.8]} 47. Rf8
{[%clk 0:01:05.1]} 47... Rb8 {[%clk 0:00:03.7]} 48. Kf2 {[%clk 0:01:01.5]} 48...
Kd6 {[%clk 0:00:03.6]} 49. Ke3 {[%clk 0:01:00.8]} 49... Ke7 {[%clk 0:00:03.9]}
50. Rh8 {[%clk 0:01:00.8]} 50... Rb3+ {[%clk 0:00:03.2]} 51. Kf4 {[%clk
0:01:00.5]} 51... g5+ {[%clk 0:00:03.5]} 52. hxg5 {[%clk 0:00:58.7]} 52... hxg5+
{[%clk 0:00:04.4]} 53. Kg4 {[%clk 0:00:58.7]} 53... Bf7 {[%clk 0:00:04.3]} 54.
Rh7 {[%clk 0:00:54.9]} 54... Kf6 {[%clk 0:00:03.9]} 55. e5+ {[%clk 0:00:53.3]}
55... Kg6 {[%clk 0:00:03.4]} 56. Rh5 {[%clk 0:00:47]} 56... Bxd5 {[%clk
0:00:03.5]} 57. Rxg5+ {[%clk 0:00:47.2]} 57... Kf7 {[%clk 0:00:04.2]} 58. f4
{[%clk 0:00:47.2]} 58... Ke6 {[%clk 0:00:03.4]} 59. Rg6+ {[%clk 0:00:46.9]}
59... Ke7 {[%clk 0:00:03.2]} 60. Rh6 {[%clk 0:00:46.5]} 60... Rc3 {[%clk
0:00:02.6]} 61. Rh7+ {[%clk 0:00:45]} 61... Ke8 {[%clk 0:00:02.1]} 62. Rxc7
{[%clk 0:00:43.7]} 62... Rxc6 {[%clk 0:00:02.4]} 63. Ra7 {[%clk 0:00:40.5]}
63... Rc4 {[%clk 0:00:02.4]} 64. Kg5 {[%clk 0:00:40.1]} 64... Rc7 {[%clk
0:00:02.2]} 65. Rxc7 {[%clk 0:00:39.1]} 1-0